fUST/lending_fUST_20240419
["ID","MTS","AMOUNT","RATE_DAILY","PERIOD"]
[322914889,1713496254914,-500.0,0.0003041,6]
[322914890,1713496254923,-500.0,0.0003041,6]
[322914891,1713496254932,-500.0,0.0003041,6]
[322914892,1713496254941,-500.0,0.0003041,6]
[322914893,1713496254950,-500.0,0.0003041,6]
[322914894,1713496254960,-500.0,0.0003041,6]
[322914895,1713496254969,-500.0,0.0003041,6]
[322914896,1713496254978,-500.0,0.0003041,6]
[322914897,1713496254987,-500.0,0.0003041,6]
[322914898,1713496254996,-500.0,0.0003041,6]
[322914899,1713496255006,-526.22791659,0.0003041,6]
[322914900,1713496255016,-500.0,0.0003041,6]
[322914901,1713496255025,-500.0,0.0003041,6]
[322914902,1713496255033,-500.0,0.0003041,6]
[322914903,1713496255043,-500.0,0.0003041,6]
[322914904,1713496255052,-500.0,0.0003041,6]
[322914905,1713496255061,-507.50021744,0.0003041,6]
[322914906,1713496255070,-500.0,0.0003041,6]
[322914907,1713496255079,-1087.01,0.0003041,6]
[322914908,1713496255089,-505.47318067,0.0003041,6]
[322914909,1713496255098,-500.0,0.0003041,6]
[322914910,1713496255108,-500.0,0.0003041,6]
[322914911,1713496255118,-500.0,0.0003041,6]
[322914912,1713496255127,-500.0,0.0003041,6]
[322914913,1713496255136,-649.87005967,0.0003041,6]
[322914914,1713496255146,-503.08432726,0.0003041,6]
[322914915,1713496255155,-1949.07,0.0003041,6]
[322914916,1713496255165,-500.0,0.0003041,6]
[322914917,1713496255174,-500.0,0.0003041,6]
[322914918,1713496255183,-500.0,0.0003041,6]
[322914919,1713496255193,-2500.67,0.0003041,6]
[322914920,1713496255202,-500.0,0.0003041,6]
[322914921,1713496255211,-500.0,0.0003041,6]
[322914922,1713496255220,-903.56,0.0003041,6]
[322914923,1713496255230,-500.0,0.0003041,6]
[322914924,1713496255239,-500.0,0.0003041,6]
[322914925,1713496255248,-500.0,0.0003041,6]
[322914926,1713496255257,-504.4,0.0003041,6]
[322914927,1713496255266,-500.0,0.0003041,6]
[322914928,1713496255275,-526.19634509,0.0003041,6]
[322914929,1713496255284,-500.0,0.0003041,6]
[322914930,1713496255294,-595.80209034,0.0003041,6]
[322914931,1713496255304,-664.86,0.0003041,6]
[322914932,1713496255313,-500.0,0.0003041,6]
[322914933,1713496255322,-506.53566164,0.0003041,6]
[322914934,1713496255332,-510.48702121,0.0003041,6]
[322914935,1713496255341,-500.0,0.0003041,6]
[322914936,1713496255350,-500.0,0.0003041,6]
[322914937,1713496255364,-500.0,0.0003041,6]
[322914938,1713496255373,-500.0,0.0003041,6]
[322914939,1713496255383,-500.0,0.0003041,6]
[322914940,1713496255395,-500.0,0.0003041,6]
[322914941,1713496255404,-500.0,0.0003041,6]
[322914942,1713496255414,-500.0,0.0003041,6]
[322914943,1713496255423,-503.8929203,0.0003041,6]
[322914944,1713496255434,-500.0,0.0003041,6]
[322914945,1713496255443,-502.87076455,0.0003041,6]
[322914946,1713496255453,-506.38777401,0.0003041,6]
[322914947,1713496255462,-500.0,0.0003041,6]
[322914948,1713496255471,-500.0,0.0003041,6]
[322914949,1713496255480,-500.0,0.0003041,6]
[322914950,1713496255490,-500.0,0.0003041,6]
[322914951,1713496255500,-500.0,0.0003041,6]
[322914952,1713496255509,-500.0,0.0003041,6]
[322914953,1713496255518,-500.0,0.0003041,6]
[322914954,1713496255527,-766.49,0.0003041,6]
[322914955,1713496255536,-500.0,0.0003041,6]
[322914956,1713496255547,-1029.38,0.0003041,6]
[322914957,1713496255556,-500.0,0.0003041,6]
[322914958,1713496255565,-500.0,0.0003041,6]
[322914959,1713496255575,-500.0,0.0003041,6]
[322914960,1713496255584,-229.21298645,0.0003041,6]
[322914961,1713496255594,-832.48,0.0003041,6]
[322914962,1713496255603,-510.91959843,0.0003041,6]
[322914963,1713496255617,-500.0,0.0003041,6]
[322914964,1713496255627,-500.0,0.0003041,6]
[322914965,1713496255637,-500.0,0.0003041,6]
[322914966,1713496255646,-614.12,0.0003041,6]
[322914967,1713496255656,-500.0,0.0003041,6]
[322914968,1713496255666,-896.14,0.0003041,6]
[322914969,1713496255675,-1623.44,0.0003041,6]
[322914970,1713496255684,-500.0,0.0003041,6]
[322914971,1713496255694,-183.39776687,0.0003041,6]
[322914972,1713496255703,-521.96,0.0003041,6]
[322914973,1713496255712,-500.0,0.0003041,6]
[322914974,1713496255722,-500.0,0.0003041,6]
[322914975,1713496255731,-500.0,0.0003041,6]
[322914976,1713496255741,-515.06322647,0.0003041,6]
[322914977,1713496255750,-500.0,0.0003041,6]
[322914978,1713496255760,-150.01348396,0.0003041,6]
[322914979,1713496255769,-500.0,0.0003041,6]
[322914980,1713496255779,-520.55547566,0.0003041,6]
[322914981,1713496255788,-505.44250464,0.0003041,6]
[322914982,1713496255797,-500.0,0.0003041,6]
[322914983,1713496255806,-500.0,0.0003041,6]
[322914984,1713496255815,-500.0,0.0003041,6]
[322914985,1713496255824,-500.0,0.0003041,6]
[322914986,1713496255834,-500.0,0.0003041,6]
[322914987,1713496255843,-500.0,0.0003041,6]
[322914988,1713496255852,-500.0,0.0003041,6]
[322914989,1713496255866,-547.25,0.0003041,6]
[322914990,1713496255876,-526.57467113,0.0003041,6]
[322914991,1713496255885,-505.6987309,0.0003041,6]
[322914992,1713496255895,-500.0,0.0003041,6]
[322914993,1713496255904,-500.0,0.0003041,6]
[322914994,1713496255913,-500.0,0.0003041,6]
[322914995,1713496255923,-500.0,0.0003041,6]
[322914996,1713496255931,-381.9385577,0.0003041,6]
[322914997,1713496255940,-500.0,0.0003041,6]
[322914998,1713496255949,-500.0,0.0003041,6]
[322914999,1713496255958,-500.0,0.0003041,6]
[322915000,1713496255967,-358.13636384,0.0003041,6]
[322915001,1713496255977,-500.0,0.0003041,6]
[322915002,1713496255985,-1566.67,0.0003041,6]
[322915003,1713496255994,-500.0,0.0003041,6]
[322915004,1713496256003,-500.0,0.0003041,6]
[322915005,1713496256012,-500.0,0.0003041,6]
[322915006,1713496256021,-500.0,0.0003041,6]
[322915007,1713496256030,-500.0,0.0003041,6]
[322915008,1713496256039,-500.0,0.0003041,6]
[322915009,1713496256048,-511.48483928,0.0003041,6]
[322915010,1713496256057,-203.8637142,0.0003041,6]
[322915011,1713496256066,-500.0,0.0003041,6]
[322915012,1713496256075,-500.0,0.0003041,6]
[322915013,1713496256084,-500.0,0.0003041,6]
[322915014,1713496256093,-500.0,0.0003041,6]
[322915015,1713496256102,-500.0,0.0003041,6]
[322915016,1713496256116,-500.0,0.0003041,6]
[322915017,1713496256126,-500.0,0.0003041,6]
[322915018,1713496256135,-500.0,0.0003041,6]
[322915019,1713496256144,-500.0,0.0003041,6]
[322915020,1713496256153,-1212.86,0.0003041,6]
[322915021,1713496256163,-500.0,0.0003041,6]
[322915022,1713496256172,-177.342257,0.0003041,2]
[322915023,1713496256181,-500.0,0.0003041,6]
[322915024,1713496256190,-1164.39,0.0003041,6]
[322915025,1713496256200,-500.0,0.0003041,6]
[322915026,1713496256210,-1637.79,0.0003041,6]
[322915027,1713496256220,-500.0,0.0003041,6]
[322915028,1713496256229,-500.0,0.0003041,6]
[322915029,1713496256238,-520.37109545,0.0003041,6]
[322915030,1713496256248,-500.0,0.0003041,6]
[322915031,1713496256258,-500.0,0.0003041,6]
[322915032,1713496256267,-500.0,0.0003041,6]
[322915033,1713496256277,-500.0,0.0003041,6]
[322915034,1713496256286,-500.0,0.0003041,6]
[322915035,1713496256295,-500.0,0.0003041,6]
[322915036,1713496256306,-500.0,0.0003041,6]
[322915037,1713496256315,-500.0,0.0003041,6]
[322915038,1713496256455,-505.8616139,0.0003041,6]
[322915039,1713496256465,-500.0,0.0003041,6]
[322915040,1713496256476,-500.0,0.0003041,6]
[322915041,1713496256485,-500.0,0.0003041,6]
[322915042,1713496256494,-500.0,0.0003041,6]
[322915043,1713496256504,-500.0,0.0003041,6]
[322915044,1713496256514,-500.0,0.0003041,6]
[322915045,1713496256524,-500.0,0.0003041,6]
[322915046,1713496256533,-500.0,0.0003041,6]
[322915047,1713496256542,-500.0,0.0003041,6]
[322915048,1713496256551,-252.95290385,0.0003041,6]
[322915049,1713496256560,-914.71,0.0003041,6]
[322915050,1713496256569,-206.99836847,0.0003041,6]
[322915051,1713496256579,-500.0,0.0003041,6]
[322915052,1713496256588,-945.56,0.0003041,6]
[322915053,1713496256597,-2083.33,0.0003041,6]
[322915054,1713496256608,-500.0,0.0003041,6]
[322915055,1713496256617,-500.0,0.0003041,6]
[322915056,1713496256626,-500.0,0.0003041,6]
[322915057,1713496256635,-500.0,0.0003041,6]
[322915058,1713496256645,-25237.66,0.0003041,6]
[322915059,1713496256655,-500.0,0.0003041,6]
[322915060,1713496256664,-954.56,0.0003041,6]
[322915061,1713496256673,-514.87195153,0.0003041,6]
[322915062,1713496256682,-500.0,0.0003041,6]
[322915063,1713496256691,-500.0,0.0003041,6]
[322915064,1713496256702,-500.0,0.0003041,6]
[322915065,1713496256711,-981.69,0.0003041,6]
[322915066,1713496256721,-500.0,0.0003041,6]
[322915067,1713496256732,-500.0,0.0003041,6]
[322915068,1713496256741,-500.0,0.0003041,6]
[322915069,1713496256751,-503.07076323,0.0003041,2]
[322915070,1713496256761,-500.0,0.0003041,6]
[322915071,1713496256771,-500.0,0.0003041,6]
[322915072,1713496256780,-500.0,0.0003041,6]
[322915073,1713496256791,-500.0,0.0003041,6]
[322915074,1713496256800,-1515.19,0.0003041,6]
[322915075,1713496256810,-21078.95,0.0003041,6]
[322915076,1713496256819,-500.0,0.0003041,6]
[322915077,1713496256828,-500.0,0.0003041,6]
[322915078,1713496256838,-500.0,0.0003041,6]
[322915079,1713496256847,-500.0,0.0003041,6]
[322915080,1713496256859,-500.0,0.0003041,6]
[322915081,1713496256868,-511.55718913,0.0003041,6]
[322915082,1713496256877,-500.0,0.0003041,6]
[322915083,1713496256887,-500.0,0.0003041,6]
[322915084,1713496256896,-939.04,0.0003041,6]
[322915085,1713496256906,-500.0,0.0003041,6]
[322915086,1713496256916,-500.0,0.0003041,6]
[322915087,1713496256925,-548.54,0.0003041,6]
[322915088,1713496256935,-524.08030379,0.0003041,6]
[322915089,1713496256946,-500.0,0.0003041,6]
[322915090,1713496256956,-500.0,0.0003041,6]
[322915091,1713496256966,-500.0,0.0003041,6]
[322915092,1713496256975,-500.0,0.0003041,6]
[322915093,1713496256985,-500.0,0.0003041,6]
[322915094,1713496256996,-500.0,0.0003041,6]
[322915095,1713496257006,-500.0,0.0003041,6]
[322915096,1713496257015,-500.0,0.0003041,6]
[322915097,1713496257025,-701.18,0.0003041,6]
[322915098,1713496257035,-7968.65,0.0003041,6]
[322915099,1713496257044,-500.0,0.0003041,6]
[322915100,1713496257053,-1687.91,0.0003041,6]
[322915101,1713496257063,-1252.32,0.0003041,6]
[322915102,1713496257073,-701.26,0.0003041,6]
[322915103,1713496257082,-737.38,0.0003041,6]
[322915104,1713496257092,-501.57835664,0.0003041,6]
[322915105,1713496257101,-500.0,0.0003041,6]
[322915106,1713496257113,-2924.29,0.0003041,6]
[322915107,1713496257122,-444.23076096,0.0003041,6]
[322915108,1713496257131,-947.82,0.0003041,6]
[322915109,1713496257140,-500.0,0.0003041,6]
[322915110,1713496257150,-500.0,0.0003041,6]
[322915111,1713496257159,-630.27,0.0003041,6]
[322915112,1713496257168,-580.40133778,0.0003041,6]
[322915113,1713496257178,-307.04655279,0.0003041,6]
[322915114,1713496257188,-752.33,0.0003041,6]
[322915115,1713496257198,-3385.30096161,0.0003041,6]
[322915259,1713497438659,-361.75151942,0.00027308,2]
[322915260,1713497438669,-329.39846217,0.00027309,2]
[322915261,1713497438892,-154.90705577,0.0002731,2]
[322915262,1713497438914,-1201.28235502,0.0002731,2]
[322915263,1713497438924,-2959.34273422,0.0002731,2]
[322915264,1713497438935,-308.45638369,0.0002731,2]
[322915720,1713497443793,-371.54,0.00027301,3]
[322915723,1713497443806,-1253.34475698,0.00027301,3]
[322916768,1713498639976,-1201.28235502,0.00026987,2]
[322916769,1713498639988,-329.39846217,0.00026988,2]
[322916770,1713498639999,-300.0,0.00026998,2]
[322916771,1713498640010,-300.0,0.00026998,2]
[322916772,1713498640020,-231.76344083,0.00026998,2]
[322916773,1713498640031,-1533.29024522,0.00026999,2]
[322916966,1713499841053,-179.82215512,0.00021757,2]
[322916967,1713499841063,-623.31363126,0.00021857,2]
[322916968,1713499841074,-1489.22314453,0.00021857,2]
[322916969,1713499841083,-1201.28235502,0.00021858,2]
[322916970,1713499841092,-521.10599486,0.00021858,2]
[322916971,1713499841101,-151.45458088,0.00021861,2]
[322916972,1713499841113,-266.52828225,0.00021861,2]
[322916973,1713499841123,-300.0,0.00021958,2]
[322916974,1713499841132,-300.0,0.00021958,2]
[322916975,1713499841141,-2086.28469764,0.00021958,2]
[322917010,1713499843265,-682.39969988,0.00021958,2]
[322917032,1713500081777,200.0,0.00027699,120]
[322917080,1713500586907,334.38629048,0.00020944,2]
[322917097,1713500652270,4065.80539373,0.00020944,2]
[322917102,1713500828130,533.7464206,0.00019994,2]
[322917105,1713500867260,44160.00793817,0.00019994,2]
[322917106,1713500871765,44160.00793817,0.00019994,2]
[322917109,1713500911769,36800.00661515,0.00019994,2]
[322917110,1713500929760,19172.80344649,0.00019994,2]
[322917111,1713500947760,19172.80344649,0.00019994,2]
[322917113,1713500976304,19172.80344649,0.00019994,2]
[322917114,1713500991778,19172.80344649,0.00019994,2]
[322917115,1713501011783,19172.80344649,0.00019994,2]
[322917137,1713501035803,19172.80344649,0.00019994,2]
[322917322,1713501040275,-1201.28235502,0.00020836,2]
[322917325,1713501040285,-267.5090324,0.00020837,2]
[322917327,1713501040295,-179.82215511,0.00020842,2]
[322917329,1713501040304,-11216.06582281,0.00020934,2]
[322917997,1713501046894,233.83610178,0.0001884,2]
[322918394,1713501051796,19172.80344649,0.00019994,2]
[322918431,1713501071787,19172.80344649,0.00019994,2]
[322918432,1713501089795,19172.80344649,0.00019994,2]
[322918434,1713501107800,19172.80344649,0.00019994,2]
[322918435,1713501126682,7767.98148241,0.00019994,2]
[322918443,1713501721363,612.10896798,0.00020079,2]
[322918444,1713501811916,214.00722592,0.00020075,2]
[322918450,1713502001953,535.595347,0.00020068,2]
[322918457,1713502219176,171.20578072,0.00020069,2]
[322918458,1713502225956,179.32221685,0.00016132,2]
[322918498,1713502232429,-1201.28235502,0.00020159,2]
[322918501,1713502232439,-300.0,0.0002016,2]
[322918502,1713502232449,-1681.27050544,0.0002016,2]
[322918504,1713502232460,-308.13476314,0.0002016,2]
[322918506,1713502232469,-300.0,0.00020161,2]
[322918508,1713502232479,-300.0,0.00020161,2]
[322918510,1713502232488,-1560.72550011,0.00020161,2]
[322918530,1713502232666,-2325.79064426,0.00020161,2]
[322918583,1713502238564,-27387.31489269,0.00020161,2]
[322918584,1713502238573,-164.57788955,0.00020166,2]
[322918585,1713502238582,-234.91778789,0.00020166,2]
[322918586,1713502238592,-72510.41728967,0.00020167,2]
[322918587,1713502238601,-6923.51821649,0.00020169,2]
[322918588,1713502238611,-6923.51821649,0.00020169,2]
[322918589,1713502238620,-6923.51821649,0.00020169,2]
[322918590,1713502238629,-6923.51821649,0.00020169,2]
[322918591,1713502238639,-6923.51821649,0.00020169,2]
[322918592,1713502238649,-624.96889786,0.00020177,2]
[322918593,1713502238658,-171.20578071,0.00021777,2]
[322918594,1713502238667,-420.0,0.00021949,2]
[322918595,1713502238676,-107.28929706,0.00022177,2]
[322918619,1713502243549,-312.71070294,0.00022177,2]
[322918620,1713502243559,-944.7388782,0.00022836,2]
[322918621,1713502243568,-4758.65054617,0.00023343,2]
[322918623,1713502243657,-169.71905023,0.00023343,2]
[322918629,1713502252050,4970.4363408,0.00020069,2]
[322918630,1713502272019,957.21694951,0.00020069,2]
[322918631,1713502280071,442.16846725,0.000189,2]
[322918648,1713502517640,653.06860592,0.00020062,2]
[322918650,1713502581014,294.77897816,0.000189,2]
[322918661,1713502699210,19167.30700604,0.000189,2]
[322918662,1713502708518,172.97277642,0.000189,2]
[322918664,1713502725664,770.21037316,0.00019313,2]
[322918667,1713502743099,2054.05255548,0.000189,2]
[322918669,1713502768075,236.951968,0.00019648,2]
[322918674,1713502882103,196.51931878,0.000189,2]
[322918675,1713502907572,7299.81242064,0.000189,2]
[322918678,1713502969071,567.625528,0.00019151,2]
[322918683,1713503021284,171.20578071,0.00020063,2]
[322918684,1713503083415,24900.0,0.00019135,2]
[322918686,1713503093649,300.0,0.00020101,2]
[322918687,1713503093816,539.43970623,0.00020101,2]
[322918688,1713503107581,154.87609912,0.00020063,2]
[322918689,1713503114289,361.75151942,0.00020101,2]
[322918690,1713503121498,154.87609912,0.00020101,2]
[322918691,1713503137492,164.52375111,0.00020101,2]
[322918693,1713503157166,555.35032264,0.00020101,2]
[322918694,1713503160878,62855.60664657,0.0002,2]
[322918695,1713503167954,211.91364755,0.00020101,2]
[322918696,1713503168640,532.4634604,0.00020101,2]
[322918697,1713503180122,300.0,0.00020101,2]
[322918698,1713503183365,150.0,0.000189,2]
[322918699,1713503210513,386.86187828,0.00020101,2]
[322918700,1713503230503,385.58155713,0.00020101,2]
[322918701,1713503231140,168.69885,0.00019178,2]
[322918702,1713503242415,211.91364755,0.00020101,2]
[322918703,1713503246629,300.0,0.00020101,2]
[322918704,1713503252514,194.74099993,0.00020101,2]
[322918711,1713503325137,300.0,0.00020101,2]
[322918718,1713503387639,300.0,0.00020101,2]
[322918722,1713503428242,694.40606993,0.00020051,2]
[322918756,1713503432537,-624.96889786,0.00020102,2]
[322918757,1713503432547,-1079.1125784,0.00020112,2]
[322918758,1713503432556,-300.0,0.00020149,2]
[322918759,1713503432565,-300.0,0.00020149,2]
[322918760,1713503432574,-202.10407482,0.00020149,2]
[322918761,1713503432583,-10649.09387334,0.00020149,2]
[322918762,1713503432606,-4970.4363408,0.00020149,2]
[322918827,1713503438689,-56890.88707553,0.00020149,2]
[322918828,1713503438700,-164.57788955,0.00020149,2]
[322918829,1713503438709,-234.91778789,0.00020149,2]
[322918830,1713503438718,-31273.83103706,0.0002015,2]
[322918831,1713503438728,-199.61920808,0.00020155,2]
[322918832,1713503438737,-1089.26071762,0.00020157,2]
[322918833,1713503438746,-540.80266261,0.00020159,2]
[322918834,1713503438755,-377.95516543,0.00020159,2]
[322918835,1713503438764,-883.09222158,0.00020163,2]
[322918836,1713503438774,-2621.14214872,0.00020165,2]
[322918837,1713503438786,-694.40606993,0.00021763,2]
[322918838,1713503438795,-420.0,0.00021937,2]
[322918839,1713503438804,-420.0,0.00022164,2]
[322918840,1713503438813,-609.056387,0.00023076,2]
[322918841,1713503438823,-950.0,0.000233,2]
[322918842,1713503438832,-260.24054589,0.00023342,2]
[322918843,1713503438842,-694.40606993,0.00023476,2]
[322918844,1713503438853,-587.0,0.00023883,2]
[322918845,1713503438862,-150.0,0.000239,2]
[322918846,1713503438872,-587.0,0.0002438,2]
[322918847,1713503438881,-157.57629298,0.00025,2]
[322918848,1713503438891,-694.40606993,0.00025188,2]
[322918849,1713503438900,-244.0,0.00026002,2]
[322918850,1713503438909,-823.0,0.00026818,2]
[322918851,1713503438918,-694.40606993,0.000269,2]
[322918852,1713503438930,-783.87866091,0.00026971,2]
[322918853,1713503438940,-1868.78,0.0002699,3]
[322918854,1713503438950,-2917.78,0.0002699,3]
[322918855,1713503438959,-2431.49,0.0002699,3]
[322918856,1713503438968,-1475.59939282,0.00026994,2]
[322918857,1713503438977,-605.20033895,0.00026995,2]
[322918858,1713503438986,-4560.66102486,0.00026996,2]
[322918859,1713503438995,-1528.31183936,0.00026997,2]
[322918860,1713503439005,-378.0379296,0.00026997,2]
[322918861,1713503439014,-418.75466667,0.00026997,2]
[322918862,1713503439024,-989.60039373,0.00026997,2]
[322918863,1713503439035,-284.14248275,0.00026998,2]
[322918864,1713503439045,-15734.4744087,0.00027,2]
[322918865,1713503439057,-957.21694951,0.00027,2]
[322918871,1713503442017,-1249.18,0.00027,2]
[322918921,1713503577826,18394.26236598,0.00020048,2]
[322918969,1713504375080,771.678198,0.00019884,2]
[322918972,1713504387841,481.30854653,0.000189,2]
[322918974,1713504486477,168.026845,0.00019596,2]
[322919012,1713504631835,-602.88452761,0.00020187,2]
[322919014,1713504631845,-1489.22314453,0.00020187,2]
[322919016,1713504631854,-468.09250976,0.00020187,2]
[322919018,1713504631863,-283.08369263,0.00020187,2]
[322919020,1713504631873,-272.37935465,0.00020187,2]
[322919022,1713504631882,-521.10599486,0.00020188,2]
[322919024,1713504631891,-432.79947812,0.00020188,2]
[322919088,1713504640555,-5797.00010816,0.00020186,2]
[322919089,1713504640565,-474.41717425,0.00020187,2]
[322919090,1713504640574,-156.90851083,0.00020187,2]
[322919091,1713504640584,-784.09852565,0.00020187,2]
[322919092,1713504640593,-154.86062544,0.00020187,2]
[322919093,1713504640603,-715.67962132,0.00020188,2]
[322919094,1713504640614,-949.39636087,0.00020188,2]
[322919095,1713504640623,-500.0,0.00020188,2]
[322919096,1713504640631,-500.0,0.00020188,2]
[322919097,1713504640641,-176.62276503,0.00020188,2]
[322919098,1713504640650,-500.0,0.00020188,2]
[322919099,1713504640659,-625.99163623,0.00020188,2]
[322919100,1713504640668,-500.0,0.00020188,2]
[322919101,1713504640677,-500.0,0.00020188,2]
[322919102,1713504640686,-500.0,0.00020188,2]
[322919103,1713504640696,-534.50927869,0.00020188,2]
[322919104,1713504640705,-500.0,0.00020188,2]
[322919105,1713504640714,-500.0,0.00020188,2]
[322919106,1713504640724,-482.08316671,0.00020188,2]
[322919107,1713504640733,-500.0,0.00020188,2]
[322919108,1713504640743,-500.0,0.00020188,2]
[322919109,1713504640752,-500.0,0.00020188,2]
[322919110,1713504640762,-500.0,0.00020188,2]
[322919111,1713504640771,-500.0,0.00020188,2]
[322919112,1713504640783,-3085.32367047,0.00020188,2]
[322919139,1713504689417,516.65541767,0.000189,2]
[322919141,1713504746489,250.0,0.00019159,2]
[322919143,1713504810910,769.20341613,0.00020051,2]
[322919144,1713504846557,467.150005,0.00019144,2]
[322919146,1713504990680,344.43694511,0.000189,2]
[322919147,1713505003681,13523.6178276,0.00019123,2]
[322919148,1713505033897,1088.74897324,0.00020022,2]
[322919149,1713505035775,1088.74897324,0.0002004,2]
[322919150,1713505037781,1088.74897324,0.00020058,2]
[322919151,1713505039816,1088.74897324,0.00020075,2]
[322919152,1713505041837,1088.74897324,0.00020093,2]
[322919153,1713505140609,300.0,0.00020101,2]
[322919154,1713505141408,2097.87546031,0.00020101,2]
[322919155,1713505141440,157.63770947,0.00020101,2]
[322919156,1713505141937,300.0,0.00020101,2]
[322919157,1713505142566,189.04656977,0.00020101,2]
[322919158,1713505143725,1876.66751895,0.000201,2]
[322919159,1713505146409,1310.7097611,0.00020101,2]
[322919160,1713505146457,205.90960079,0.000201,2]
[322919161,1713505146492,193.45780411,0.000201,2]
[322919162,1713505146557,474.41717425,0.000201,2]
[322919163,1713505148558,564.09332327,0.00020101,2]
[322919164,1713505149163,154.86062544,0.00020101,2]
[322919165,1713505151075,400.0,0.00020101,2]
[322919166,1713505151672,154.86062544,0.00020101,2]
[322919167,1713505156533,154.86062544,0.00020101,2]
[322919169,1713505158106,1089.6608071,0.00020101,2]
[322919170,1713505159878,161.90783343,0.00020101,2]
[322919171,1713505166461,105221.9482377,0.0002,2]
[322919172,1713505169283,1489.22314453,0.00020101,2]
[322919173,1713505170531,155.34563338,0.00020101,2]
[322919174,1713505170878,883.09222158,0.00020101,2]
[322919175,1713505174568,31273.83103706,0.00020101,2]
[322919176,1713505176302,247.03012608,0.00020101,2]
[322919177,1713505176859,688.90875736,0.00020101,2]
[322919178,1713505177821,7861.03845774,0.00020101,2]
[322919179,1713505180580,361.75151942,0.00020101,2]
[322919180,1713505182918,300.0,0.00020101,2]
[322919181,1713505183856,1619.50325324,0.00020101,2]
[322919182,1713505184353,4337.19743473,0.00020093,2]
[322919183,1713505185624,24900.0,0.00019109,2]
[322919184,1713505186876,881.60538272,0.00020101,2]
[322919185,1713505188326,241.3290765,0.00020101,2]
[322919186,1713505188411,154.86062544,0.00020101,2]
[322919187,1713505188569,31273.83103706,0.00020101,2]
[322919188,1713505190860,708.1042808,0.00020101,2]
[322919189,1713505191057,296.22435726,0.00020101,2]
[322919190,1713505191087,283.08369263,0.00020101,2]
[322919191,1713505191283,1306.89543068,0.00020101,2]
[322919192,1713505192267,247.03012608,0.00020101,2]
[322919193,1713505192989,977.06231715,0.00020101,2]
[322919194,1713505193830,6327.67853518,0.00020101,2]
[322919195,1713505195863,1619.50325324,0.00020101,2]
[322919196,1713505196578,377.88888487,0.00020101,2]
[322919197,1713505196912,300.0,0.00020101,2]
[322919198,1713505200877,300.0,0.00020101,2]
[322919199,1713505202395,300.0,0.00020101,2]
[322919200,1713505204330,241.3290765,0.00020101,2]
[322919201,1713505204587,1021.54984484,0.00020101,2]
[322919202,1713505206912,154.86062544,0.00020101,2]
[322919203,1713505209088,285.07776496,0.00020101,2]
[322919204,1713505210245,1876.66751895,0.00020101,2]
[322919205,1713505211004,965.42678381,0.00020101,2]
[322919207,1713505213860,1619.50325324,0.00020101,2]
[322919208,1713505214276,343.01699559,0.00020101,2]
[322919209,1713505214917,300.0,0.00020101,2]
[322919210,1713505217805,157.63770947,0.00020101,2]
[322919211,1713505224392,241.09118866,0.00020101,2]
[322919212,1713505224908,154.86062544,0.00020101,2]
[322919213,1713505230243,1597.48778773,0.00020101,2]
[322919214,1713505230273,193.45780411,0.00020101,2]
[322919215,1713505230914,300.0,0.00020101,2]
[322919216,1713505246846,155.79000806,0.00020101,2]
[322919217,1713505255872,200.0,0.00020101,2]
[322919218,1713505256808,534.45033612,0.00020101,2]
[322919219,1713505259115,11613.85914445,0.00020101,2]